[Event "*** Titled Tuesday 3|2 Blitz (Late)"]
[Site "Chess.com"]
[Date "2017.01.03"]
[Round "1"]
[White "stalyansky"]
[Black "HansCoolNiemann"]
[Result "1-0"]
[WhiteElo "1085"]
[BlackElo "2282"]
[TimeControl "180+2"]
[EndTime "17:08:33 PST"]
[Termination "stalyansky won by checkmate"]

1. e4 {[%clk 0:02:59.7]} 1... e6 {[%clk 0:03:00.7]} 2. d4 {[%clk 0:03:00.2]}
2... d5 {[%clk 0:03:02.3]} 3. Nc3 {[%clk 0:03:01.2]} 3... Nf6 {[%clk 0:03:01.6]}
4. Bg5 {[%clk 0:03:00.7]} 4... dxe4 {[%clk 0:03:01.2]} 5. Nxe4 {[%clk
0:02:57.6]} 5... Be7 {[%clk 0:03:02.1]} 6. Bxf6 {[%clk 0:02:56.2]} 6... gxf6
{[%clk 0:03:03.3]} 7. Nf3 {[%clk 0:02:57.1]} 7... f5 {[%clk 0:03:03.6]} 8. Ned2
{[%clk 0:02:53.5]} 8... c5 {[%clk 0:03:03.1]} 9. dxc5 {[%clk 0:02:45.6]} 9...
Bxc5 {[%clk 0:03:05]} 10. Bb5+ {[%clk 0:02:45.6]} 10... Nc6 {[%clk 0:03:04.8]}
11. Qe2 {[%clk 0:02:46.8]} 11... O-O {[%clk 0:03:00.8]} 12. O-O-O {[%clk
0:02:38.9]} 12... Qf6 {[%clk 0:02:54.6]} 13. Rhg1 {[%clk 0:02:26.6]} 13... Nb4
{[%clk 0:02:48.5]} 14. Kb1 {[%clk 0:02:17.4]} 14... a6 {[%clk 0:02:47.4]} 15.
Bd3 {[%clk 0:02:05.4]} 15... Bd7 {[%clk 0:02:42.9]} 16. g4 {[%clk 0:02:04.7]}
16... Nxd3 {[%clk 0:02:41.8]} 17. gxf5+ {[%clk 0:02:01.8]} 17... Kh8 {[%clk
0:02:41.5]} 18. Qxd3 {[%clk 0:01:54.7]} 18... Bb5 {[%clk 0:02:41.7]} 19. c4
{[%clk 0:01:52.2]} 19... Rad8 {[%clk 0:02:40.4]} 20. Qc2 {[%clk 0:01:36.7]}
20... Bc6 {[%clk 0:02:40.8]} 21. fxe6 {[%clk 0:01:33.7]} 21... fxe6 {[%clk
0:02:34.1]} 22. Ng5 {[%clk 0:01:32.4]} 22... Rd7 {[%clk 0:02:27.9]} 23. Nde4
{[%clk 0:01:29.7]} 23... Rxd1+ {[%clk 0:02:26.1]} 24. Rxd1 {[%clk 0:01:29]}
24... Bxe4 {[%clk 0:02:27.2]} 25. Nxe4 {[%clk 0:01:29.6]} 25... Qe5 {[%clk
0:02:28.4]} 26. f4 {[%clk 0:00:50.8]} 26... Rxf4 {[%clk 0:02:13.6]} 27. Nxc5
{[%clk 0:00:42.2]} 27... Qxc5 {[%clk 0:02:13.6]} 28. Qc3+ {[%clk 0:00:42.1]}
28... e5 {[%clk 0:01:57]} 29. Rd8+ {[%clk 0:00:40.9]} 29... Kg7 {[%clk
0:01:53.4]} 30. Qg3+ {[%clk 0:00:35.7]} 30... Kh6 {[%clk 0:01:53.2]} 31. Qh3+
{[%clk 0:00:31.9]} 31... Kg5 {[%clk 0:01:53.6]} 32. Rg8+ {[%clk 0:00:28.9]}
32... Kf6 {[%clk 0:01:52.4]} 33. Qh6+ {[%clk 0:00:27.8]} 33... Ke7 {[%clk
0:01:49.7]} 34. Qxh7+ {[%clk 0:00:17.2]} 34... Rf7 {[%clk 0:01:50.1]} 35. Qh4+
{[%clk 0:00:15.6]} 35... Ke6 {[%clk 0:01:37.3]} 36. Re8+ {[%clk 0:00:13.4]}
36... Kf5 {[%clk 0:01:35.9]} 37. Qh5+ {[%clk 0:00:13.2]} 37... Kf6 {[%clk
0:01:37]} 38. Qh6+ {[%clk 0:00:11.8]} 38... Kf5 {[%clk 0:01:38.3]} 39. Qe6+
{[%clk 0:00:12.1]} 39... Ke4 {[%clk 0:01:37.8]} 40. Qxf7 {[%clk 0:00:10.4]}
40... Qg1+ {[%clk 0:01:38.3]} 41. Kc2 {[%clk 0:00:11.2]} 41... Qg2+ {[%clk
0:01:36.6]} 42. Kc3 {[%clk 0:00:10.7]} 42... Qh3+ {[%clk 0:01:35.4]} 43. Kb4
{[%clk 0:00:09.3]} 43... a5+ {[%clk 0:01:32.3]} 44. Kxa5 {[%clk 0:00:08.8]}
44... b6+ {[%clk 0:01:31.6]} 45. Ka6 {[%clk 0:00:08.8]} 45... Qxh2 {[%clk
0:01:29.4]} 46. Qd5+ {[%clk 0:00:09.8]} 46... Kf5 {[%clk 0:01:30.7]} 47. Rxe5+
{[%clk 0:00:10.4]} 47... Qxe5 {[%clk 0:01:30.1]} 48. Qxe5+ {[%clk 0:00:11.5]}
48... Kxe5 {[%clk 0:01:32]} 49. Kxb6 {[%clk 0:00:12.5]} 49... Kd4 {[%clk
0:01:33.9]} 50. c5 {[%clk 0:00:13.5]} 50... Kd3 {[%clk 0:01:35.8]} 51. c6 {[%clk
0:00:14.7]} 51... Kc2 {[%clk 0:01:37.7]} 52. c7 {[%clk 0:00:15.9]} 52... Kxb2
{[%clk 0:01:39.6]} 53. c8=Q {[%clk 0:00:16.4]} 53... Kxa2 {[%clk 0:01:41.5]} 54.
Qc4+ {[%clk 0:00:16.6]} 54... Kb2 {[%clk 0:01:43.4]} 55. Kb5 {[%clk 0:00:15.6]}
55... Ka3 {[%clk 0:01:45.3]} 56. Qb4+ {[%clk 0:00:15]} 56... Ka2 {[%clk
0:01:46.5]} 57. Kc4 {[%clk 0:00:16.3]} 57... Ka1 {[%clk 0:01:47.3]} 58. Kc3
{[%clk 0:00:17.2]} 58... Ka2 {[%clk 0:01:48.2]} 59. Qb2# {[%clk 0:00:18.4]} 1-0

[Event "*** Titled Tuesday 3|2 Blitz (Late)"]
[Site "Chess.com"]
[Date "2017.01.03"]
[Round "1"]
[White "avto24"]
[Black "Ez_Chess2016"]
[Result "0-1"]
[WhiteElo "2344"]
[BlackElo "1985"]
[TimeControl "180+2"]
[EndTime "17:08:53 PST"]
[Termination "Ez_Chess2016 won by resignation"]

1. e4 {[%clk 0:03:01]} 1... c5 {[%clk 0:02:58.9]} 2. c3 {[%clk 0:03:00.6]} 2...
Nf6 {[%clk 0:02:56]} 3. e5 {[%clk 0:03:01.1]} 3... Nd5 {[%clk 0:02:57.2]} 4. d4
{[%clk 0:03:00.9]} 4... cxd4 {[%clk 0:02:58.4]} 5. Nf3 {[%clk 0:03:01.2]} 5...
d6 {[%clk 0:02:54.5]} 6. cxd4 {[%clk 0:03:02]} 6... Nc6 {[%clk 0:02:51.2]} 7.
Bc4 {[%clk 0:03:01.8]} 7... e6 {[%clk 0:02:49.2]} 8. O-O {[%clk 0:03:01.4]} 8...
Be7 {[%clk 0:02:49.7]} 9. Re1 {[%clk 0:03:01.8]} 9... O-O {[%clk 0:02:49.7]} 10.
a3 {[%clk 0:03:01.3]} 10... b6 {[%clk 0:02:02.6]} 11. Bd3 {[%clk 0:02:45.1]}
11... dxe5 {[%clk 0:01:57.8]} 12. dxe5 {[%clk 0:02:44.3]} 12... Bb7 {[%clk
0:01:51]} 13. Qc2 {[%clk 0:02:44.7]} 13... g6 {[%clk 0:01:47.8]} 14. Nbd2 {[%clk
0:02:41.1]} 14... Rc8 {[%clk 0:01:46.5]} 15. Qb1 {[%clk 0:02:25.4]} 15... Nf4
{[%clk 0:01:20.6]} 16. Bf1 {[%clk 0:02:22.5]} 16... Nd4 {[%clk 0:01:15.7]} 17.
Nxd4 {[%clk 0:01:50.1]} 17... Qxd4 {[%clk 0:01:15.8]} 18. Nb3 {[%clk 0:01:51.2]}
18... Nh3+ {[%clk 0:00:50.6]} 19. gxh3 {[%clk 0:01:45.1]} 19... Qd5 {[%clk
0:00:51.8]} 20. f3 {[%clk 0:01:12.6]} 20... Qxb3 {[%clk 0:00:46.7]} 21. Qd3
{[%clk 0:01:13]} 21... Qa4 {[%clk 0:00:29.5]} 22. Kf2 {[%clk 0:01:12.1]} 22...
Rfd8 {[%clk 0:00:29.6]} 23. Qb5 {[%clk 0:01:07.1]} 23... Bh4+ {[%clk 0:00:29.2]}
24. Kg2 {[%clk 0:01:06.3]} 24... Qxb5 {[%clk 0:00:28.7]} 25. Bxb5 {[%clk
0:01:08.2]} 25... Bxe1 {[%clk 0:00:29.6]} 26. Bg5 {[%clk 0:01:10.1]} 26... Bd2
{[%clk 0:00:24.9]} 27. Bf6 {[%clk 0:01:08.9]} 27... Rd5 {[%clk 0:00:21.2]} 28.
Ba4 {[%clk 0:01:06.7]} 28... Bf4 {[%clk 0:00:21.4]} 29. Re1 {[%clk 0:01:07.6]}
29... Rcc5 {[%clk 0:00:20]} 30. b4 {[%clk 0:01:07.7]} 30... Bxe5 {[%clk
0:00:21.1]} 31. bxc5 {[%clk 0:01:08.2]} 31... Bxf6 {[%clk 0:00:22]} 32. c6
{[%clk 0:01:09.6]} 32... Bc8 {[%clk 0:00:23.1]} 33. Rc1 {[%clk 0:01:10.9]} 33...
Kf8 {[%clk 0:00:23.5]} 34. c7 {[%clk 0:01:06.3]} 34... Ke7 {[%clk 0:00:23.3]}
35. Bc6 {[%clk 0:01:06.3]} 35... Rc5 {[%clk 0:00:24.2]} 36. Rxc5 {[%clk
0:01:05.6]} 36... bxc5 {[%clk 0:00:26.1]} 37. Kf2 {[%clk 0:01:07.1]} 37... Be5
{[%clk 0:00:27.3]} 38. Ke3 {[%clk 0:01:08.2]} 38... Bxc7 {[%clk 0:00:28.9]} 39.
Kd3 {[%clk 0:01:08.4]} 39... Bxh2 {[%clk 0:00:29.7]} 40. Kc4 {[%clk 0:01:08.6]}
40... Bd6 {[%clk 0:00:29.3]} 41. Kb5 {[%clk 0:01:09.6]} 41... e5 {[%clk
0:00:29.9]} 42. Be4 {[%clk 0:01:09.5]} 42... Bxh3 {[%clk 0:00:29.8]} 43. Kc6
{[%clk 0:01:08.6]} 43... c4 {[%clk 0:00:24.2]} 44. Kb5 {[%clk 0:01:08]} 44... c3
{[%clk 0:00:24.5]} 45. Kc4 {[%clk 0:01:08.9]} 45... Bxa3 {[%clk 0:00:23.1]} 46.
Kxc3 {[%clk 0:01:09.9]} 46... Bg2 {[%clk 0:00:24.3]} 47. Kc4 {[%clk 0:01:10]}
47... f5 {[%clk 0:00:24.5]} 48. Bd5 {[%clk 0:01:10.3]} 48... Bd6 {[%clk
0:00:23.1]} 49. Kd3 {[%clk 0:01:11.1]} 49... e4+ {[%clk 0:00:23]} 50. Ke3 {[%clk
0:01:11.4]} 50... exf3 {[%clk 0:00:22.6]} 51. Bg8 {[%clk 0:01:12.4]} 51... Bc5+
{[%clk 0:00:22.5]} 52. Kf4 {[%clk 0:01:13.6]} 52... f2 {[%clk 0:00:22.3]} 53.
Bxh7 {[%clk 0:01:14.7]} 0-1

[Event "*** Titled Tuesday 3|2 Blitz (Late)"]
[Site "Chess.com"]
[Date "2017.01.03"]
[Round "1"]
[White "Gordima"]
[Black "fpawn"]
[Result "0-1"]
[WhiteElo "2467"]
[BlackElo "2221"]
[TimeControl "180+2"]
[EndTime "17:09:02 PST"]
[Termination "fpawn won by resignation"]

1. c4 {[%clk 0:02:59.5]} 1... f5 {[%clk 0:02:54.4]} 2. d4 {[%clk 0:02:58.3]}
2... Nf6 {[%clk 0:02:55.4]} 3. Nc3 {[%clk 0:02:58.6]} 3... e6 {[%clk 0:02:55.9]}
4. e3 {[%clk 0:02:53.2]} 4... d5 {[%clk 0:02:56.5]} 5. Bd3 {[%clk 0:02:49.3]}
5... c6 {[%clk 0:02:57.4]} 6. Nge2 {[%clk 0:02:49.2]} 6... Bd6 {[%clk 0:02:58]}
7. f3 {[%clk 0:02:49]} 7... O-O {[%clk 0:02:58.6]} 8. Bd2 {[%clk 0:02:50]} 8...
g6 {[%clk 0:02:55]} 9. Qc2 {[%clk 0:02:49.4]} 9... Nbd7 {[%clk 0:02:52.2]} 10.
O-O-O {[%clk 0:02:45.2]} 10... dxc4 {[%clk 0:02:44.5]} 11. Bxc4 {[%clk
0:02:45.6]} 11... Nb6 {[%clk 0:02:45]} 12. Bb3 {[%clk 0:02:46]} 12... Kg7 {[%clk
0:02:34]} 13. e4 {[%clk 0:02:43.7]} 13... Be7 {[%clk 0:02:27.6]} 14. Nf4 {[%clk
0:02:38.4]} 14... fxe4 {[%clk 0:02:13]} 15. fxe4 {[%clk 0:02:39.4]} 15... Ng4
{[%clk 0:02:14.1]} 16. Rhf1 {[%clk 0:02:29.7]} 16... Nxh2 {[%clk 0:02:01.4]} 17.
Rh1 {[%clk 0:01:40.6]} 17... Ng4 {[%clk 0:02:02.1]} 18. Nxe6+ {[%clk 0:01:21.8]}
18... Bxe6 {[%clk 0:02:00.1]} 19. Bxe6 {[%clk 0:01:23.4]} 19... Nf2 {[%clk
0:01:56.4]} 20. Bh6+ {[%clk 0:01:19.3]} 20... Kh8 {[%clk 0:01:53.7]} 21. Bxf8
{[%clk 0:01:11.6]} 21... Nxd1 {[%clk 0:01:54.6]} 22. Bh6 {[%clk 0:00:51.2]}
22... Nxc3 {[%clk 0:01:51.8]} 23. Qxc3 {[%clk 0:00:38.6]} 23... Bg5+ {[%clk
0:01:50.8]} 24. Bxg5 {[%clk 0:00:36.4]} 24... Qxg5+ {[%clk 0:01:50.9]} 25. Kb1
{[%clk 0:00:36.5]} 25... Qf6 {[%clk 0:01:41.4]} 26. Qh3 {[%clk 0:00:30.3]} 26...
Qg7 {[%clk 0:01:33.6]} 27. e5 {[%clk 0:00:28.7]} 27... Re8 {[%clk 0:01:32.7]}
28. Rf1 {[%clk 0:00:28.7]} 28... Rf8 {[%clk 0:01:28.5]} 29. Rxf8+ {[%clk
0:00:29.4]} 29... Qxf8 {[%clk 0:01:30.4]} 30. a3 {[%clk 0:00:24.7]} 30... Nd5
{[%clk 0:01:23.1]} 31. Bxd5 {[%clk 0:00:25.4]} 31... cxd5 {[%clk 0:01:23.6]} 32.
Ka2 {[%clk 0:00:19.7]} 32... Qe8 {[%clk 0:01:05.6]} 33. Qb3 {[%clk 0:00:16.3]}
33... Qc6 {[%clk 0:01:04.6]} 34. Qf3 {[%clk 0:00:17]} 34... Kg8 {[%clk
0:01:03.5]} 35. Qf4 {[%clk 0:00:12.7]} 35... Qc4+ {[%clk 0:01:03.7]} 36. Kb1
{[%clk 0:00:13.4]} 36... Qd3+ {[%clk 0:01:04.7]} 37. Kc1 {[%clk 0:00:14.2]}
37... Qc4+ {[%clk 0:01:03.7]} 38. Kd2 {[%clk 0:00:14]} 38... Qb3 {[%clk
0:01:04.2]} 39. Kc1 {[%clk 0:00:11.4]} 39... Qc4+ {[%clk 0:01:04.9]} 40. Kd2
{[%clk 0:00:11.6]} 40... Qb3 {[%clk 0:01:05.8]} 41. Qf6 {[%clk 0:00:08.7]} 41...
Qxb2+ {[%clk 0:01:06.3]} 42. Ke3 {[%clk 0:00:09]} 42... Qxa3+ {[%clk 0:01:06.8]}
43. Ke2 {[%clk 0:00:07.8]} 43... Qf8 {[%clk 0:01:01.7]} 44. Qe6+ {[%clk
0:00:06.9]} 44... Qf7 {[%clk 0:01:02.9]} 45. Qc8+ {[%clk 0:00:07.8]} 45... Kg7
{[%clk 0:01:03.8]} 46. e6 {[%clk 0:00:04]} 46... Qe7 {[%clk 0:01:03]} 47. Qd7
{[%clk 0:00:03.1]} 47... Kf8 {[%clk 0:01:01]} 48. Kd3 {[%clk 0:00:03.9]} 48...
Qxd7 {[%clk 0:01:01]} 0-1

[Event "*** Titled Tuesday 3|2 Blitz (Late)"]
[Site "Chess.com"]
[Date "2017.01.03"]
[Round "1"]
[White "dretch"]
[Black "sandromareco"]
[Result "0-1"]
[WhiteElo "2588"]
[BlackElo "2401"]
[TimeControl "180+2"]
[EndTime "17:09:04 PST"]
[Termination "sandromareco won on time"]

1. d4 {[%clk 0:03:01.8]} 1... Nf6 {[%clk 0:03:00]} 2. c4 {[%clk 0:03:02.7]} 2...
e6 {[%clk 0:03:01.2]} 3. Nc3 {[%clk 0:03:04]} 3... Bb4 {[%clk 0:03:01.4]} 4. Qc2
{[%clk 0:03:05.1]} 4... b6 {[%clk 0:03:01.6]} 5. a3 {[%clk 0:02:55.6]} 5...
Bxc3+ {[%clk 0:03:02.1]} 6. Qxc3 {[%clk 0:02:57.5]} 6... Bb7 {[%clk 0:03:02.8]}
7. Bg5 {[%clk 0:02:59]} 7... d6 {[%clk 0:03:02.7]} 8. e3 {[%clk 0:02:56.9]} 8...
Nbd7 {[%clk 0:03:03.5]} 9. Ne2 {[%clk 0:02:55.9]} 9... h6 {[%clk 0:03:04.4]} 10.
Bh4 {[%clk 0:02:56.8]} 10... c5 {[%clk 0:03:04.2]} 11. Rd1 {[%clk 0:02:54]}
11... Qc7 {[%clk 0:03:04.7]} 12. dxc5 {[%clk 0:02:47.8]} 12... bxc5 {[%clk
0:03:05.2]} 13. Qd3 {[%clk 0:02:39.6]} 13... Ne4 {[%clk 0:03:05.4]} 14. Nc3
{[%clk 0:02:33.8]} 14... Ne5 {[%clk 0:03:05]} 15. Qc2 {[%clk 0:02:32.8]} 15...
Nxc3 {[%clk 0:02:59.6]} 16. Qxc3 {[%clk 0:02:33.5]} 16... O-O {[%clk 0:03:00.5]}
17. Be2 {[%clk 0:02:28.9]} 17... Bxg2 {[%clk 0:02:33.1]} 18. Rg1 {[%clk
0:02:28.6]} 18... Be4 {[%clk 0:02:33.6]} 19. f3 {[%clk 0:01:55.9]} 19... Bg6
{[%clk 0:02:32.6]} 20. Bg3 {[%clk 0:01:45.6]} 20... Rfd8 {[%clk 0:02:28.7]} 21.
h4 {[%clk 0:01:45.2]} 21... h5 {[%clk 0:02:29.2]} 22. Bf4 {[%clk 0:01:34.1]}
22... Rab8 {[%clk 0:02:28.8]} 23. Rg5 {[%clk 0:01:30.8]} 23... f6 {[%clk
0:02:23.7]} 24. Rg2 {[%clk 0:01:27.5]} 24... Kh7 {[%clk 0:02:19.5]} 25. Kf2
{[%clk 0:01:24.8]} 25... Bf7 {[%clk 0:02:20]} 26. Rdg1 {[%clk 0:01:00.9]} 26...
g6 {[%clk 0:02:21.1]} 27. e4 {[%clk 0:00:43.8]} 27... a5 {[%clk 0:02:19.2]} 28.
Bc1 {[%clk 0:00:43.2]} 28... Qc6 {[%clk 0:02:01.7]} 29. f4 {[%clk 0:00:41.3]}
29... Nd7 {[%clk 0:02:01.8]} 30. Bxh5 {[%clk 0:00:30.1]} 30... Qxe4 {[%clk
0:02:00.5]} 31. Bxg6+ {[%clk 0:00:22.1]} 31... Bxg6 {[%clk 0:02:01.1]} 32. Rxg6
{[%clk 0:00:23.1]} 32... Qxg6 {[%clk 0:01:58.6]} 33. Rxg6 {[%clk 0:00:23.3]}
33... Kxg6 {[%clk 0:01:59.6]} 34. h5+ {[%clk 0:00:08]} 34... Kf7 {[%clk
0:01:58.3]} 35. f5 {[%clk 0:00:08.9]} 35... Ne5 {[%clk 0:01:58.3]} 36. fxe6+
{[%clk 0:00:09.6]} 36... Kxe6 {[%clk 0:01:59.5]} 37. h6 {[%clk 0:00:07.8]} 37...
a4 {[%clk 0:01:56.5]} 38. Kf1 {[%clk 0:00:07.4]} 38... Rb3 {[%clk 0:01:56.5]}
39. Qc2 {[%clk 0:00:04.3]} 39... Rh3 {[%clk 0:01:57.1]} 40. Qg2 {[%clk
0:00:04.9]} 40... Rh4 {[%clk 0:01:51.6]} 41. Qd5+ {[%clk 0:00:05.6]} 41... Ke7
{[%clk 0:01:52.3]} 42. Qb7+ {[%clk 0:00:06]} 42... Rd7 {[%clk 0:01:53.3]} 43.
Qa8 {[%clk 0:00:07.2]} 43... Ke6 {[%clk 0:01:49.3]} 44. Qg8+ {[%clk 0:00:07.6]}
44... Rf7 {[%clk 0:01:47.9]} 45. Qe8+ {[%clk 0:00:07]} 45... Kf5 {[%clk
0:01:48.3]} 46. Qc8+ {[%clk 0:00:07.7]} 46... Ke4 {[%clk 0:01:46.8]} 47. Qa8+
{[%clk 0:00:08.7]} 47... Kd3 {[%clk 0:01:47.2]} 48. Qd5+ {[%clk 0:00:09.2]}
48... Kc2 {[%clk 0:01:48.2]} 49. Qd2+ {[%clk 0:00:10.1]} 49... Kb1 {[%clk
0:01:43.3]} 50. Kg2 {[%clk 0:00:07]} 50... Rxc4 {[%clk 0:01:43.3]} 51. b3 {[%clk
0:00:02.2]} 51... Rc2 {[%clk 0:01:39.4]} 52. bxa4 {[%clk 0:00:02.8]} 52... Rxd2+
{[%clk 0:01:39.1]} 53. Bxd2 {[%clk 0:00:04.7]} 53... Nc4 {[%clk 0:01:39.7]} 54.
Bf4 {[%clk 0:00:05.2]} 54... d5 {[%clk 0:01:39.1]} 55. Kf3 {[%clk 0:00:05.4]}
55... f5 {[%clk 0:01:36.8]} 56. Bg5 {[%clk 0:00:05.9]} 56... d4 {[%clk 0:01:37]}
57. Ke2 {[%clk 0:00:06.9]} 57... Kc2 {[%clk 0:01:37.9]} 58. Kf3 {[%clk
0:00:08.1]} 58... d3 {[%clk 0:01:38.3]} 59. a5 {[%clk 0:00:04.8]} 59... Nxa5
{[%clk 0:01:38.4]} 0-1

[Event "*** Titled Tuesday 3|2 Blitz (Late)"]
[Site "Chess.com"]
[Date "2017.01.03"]
[Round "1"]
[White "SwiftyMcBishop"]
[Black "fastestmindalive"]
[Result "0-1"]
[WhiteElo "2113"]
[BlackElo "2424"]
[TimeControl "180+2"]
[EndTime "17:09:07 PST"]
[Termination "fastestmindalive won by resignation"]

1. e4 {[%clk 0:03:02]} 1... c5 {[%clk 0:02:54.8]} 2. Nf3 {[%clk 0:02:57.2]} 2...
e6 {[%clk 0:02:54.4]} 3. c3 {[%clk 0:02:58]} 3... b6 {[%clk 0:02:48.9]} 4. d4
{[%clk 0:02:56.5]} 4... Bb7 {[%clk 0:02:50.3]} 5. Bd3 {[%clk 0:02:57.4]} 5...
Nf6 {[%clk 0:02:50.1]} 6. Qe2 {[%clk 0:02:55.9]} 6... d5 {[%clk 0:02:49.7]} 7.
e5 {[%clk 0:02:56.3]} 7... Ne4 {[%clk 0:02:51]} 8. Nbd2 {[%clk 0:02:57.9]} 8...
Nxd2 {[%clk 0:02:48.1]} 9. Bxd2 {[%clk 0:02:59.8]} 9... Nc6 {[%clk 0:02:46.1]}
10. O-O {[%clk 0:02:59.4]} 10... a6 {[%clk 0:02:47.4]} 11. a3 {[%clk 0:02:53.7]}
11... b5 {[%clk 0:02:48]} 12. b3 {[%clk 0:02:53.4]} 12... Qb6 {[%clk 0:02:48.8]}
13. Qe3 {[%clk 0:02:50.8]} 13... Be7 {[%clk 0:02:35.7]} 14. Rfe1 {[%clk
0:02:42.1]} 14... h6 {[%clk 0:02:21.6]} 15. Bc2 {[%clk 0:02:41.2]} 15... Kd7
{[%clk 0:02:19.1]} 16. a4 {[%clk 0:02:40.5]} 16... b4 {[%clk 0:02:17.6]} 17. Qf4
{[%clk 0:02:29.6]} 17... g5 {[%clk 0:01:53.7]} 18. Qxf7 {[%clk 0:02:15.8]} 18...
Raf8 {[%clk 0:01:54.6]} 19. Qh5 {[%clk 0:02:16.3]} 19... cxd4 {[%clk 0:01:45.1]}
20. c4 {[%clk 0:02:17.1]} 20... Na5 {[%clk 0:01:37.5]} 21. cxd5 {[%clk
0:01:28.7]} 21... Bxd5 {[%clk 0:01:36.4]} 22. Rab1 {[%clk 0:01:26.5]} 22... g4
{[%clk 0:01:21.4]} 23. Nh4 {[%clk 0:01:19.7]} 23... d3 {[%clk 0:01:21.9]} 24.
Be3 {[%clk 0:01:18.7]} 24... Qxe3 {[%clk 0:00:44]} 25. Rxe3 {[%clk 0:01:08.4]}
25... dxc2 {[%clk 0:00:45.2]} 26. Rc1 {[%clk 0:01:09.9]} 26... Rc8 {[%clk
0:00:46.1]} 27. Ng6 {[%clk 0:01:05.8]} 27... Nxb3 {[%clk 0:00:43.3]} 28. Rxb3
{[%clk 0:00:43]} 28... Bxb3 {[%clk 0:00:45.2]} 29. Nxe7 {[%clk 0:00:44]} 29...
Kxe7 {[%clk 0:00:28.4]} 30. Qxg4 {[%clk 0:00:44.4]} 30... Rhd8 {[%clk
0:00:19.5]} 31. Qxb4+ {[%clk 0:00:39.5]} 31... Kf7 {[%clk 0:00:16.8]} 32. Qf4+
{[%clk 0:00:31.3]} 32... Ke8 {[%clk 0:00:11.8]} 33. h3 {[%clk 0:00:20.4]} 33...
Rd1+ {[%clk 0:00:12.6]} 34. Kh2 {[%clk 0:00:21.8]} 34... Rxc1 {[%clk 0:00:11.2]}
35. Qxc1 {[%clk 0:00:23.7]} 35... Rd8 {[%clk 0:00:10.7]} 36. Qxh6 {[%clk
0:00:24.7]} 36... Rd1 {[%clk 0:00:11.9]} 37. Qh8+ {[%clk 0:00:25.8]} 37... Kd7
{[%clk 0:00:12.9]} 38. Qg7+ {[%clk 0:00:27]} 38... Kc6 {[%clk 0:00:14.2]} 39.
Qf8 {[%clk 0:00:18]} 39... c1=Q {[%clk 0:00:15.7]} 40. Qc8+ {[%clk 0:00:18.2]}
40... Kd5 {[%clk 0:00:16.8]} 41. Qb7+ {[%clk 0:00:16.7]} 41... Kd4 {[%clk
0:00:17.3]} 42. Qb6+ {[%clk 0:00:16.4]} 42... Kc3 {[%clk 0:00:17.9]} 43. Qc5+
{[%clk 0:00:10.3]} 43... Kb2 {[%clk 0:00:19.2]} 44. Qb4 {[%clk 0:00:03.8]} 44...
a5 {[%clk 0:00:19.2]} 45. Kg3 {[%clk 0:00:05.7]} 45... axb4 {[%clk 0:00:20]} 0-1

[Event "*** Titled Tuesday 3|2 Blitz (Late)"]
[Site "Chess.com"]
[Date "2017.01.03"]
[Round "1"]
[White "ChristopherYoo"]
[Black "Hamisandwich"]
[Result "0-1"]
[WhiteElo "2055"]
[BlackElo "2387"]
[TimeControl "180+2"]
[EndTime "17:09:25 PST"]
[Termination "Hamisandwich won by resignation"]

1. e4 {[%clk 0:03:02]} 1... d6 {[%clk 0:03:01.4]} 2. d4 {[%clk 0:03:02.1]} 2...
Nf6 {[%clk 0:03:03.3]} 3. Nc3 {[%clk 0:03:02.4]} 3... e5 {[%clk 0:03:04.9]} 4.
Nf3 {[%clk 0:03:00.7]} 4... Nbd7 {[%clk 0:03:06.2]} 5. Bc4 {[%clk 0:03:00.6]}
5... Be7 {[%clk 0:03:07.5]} 6. O-O {[%clk 0:03:00.7]} 6... O-O {[%clk
0:03:08.2]} 7. h3 {[%clk 0:02:48.1]} 7... b6 {[%clk 0:03:06.2]} 8. Re1 {[%clk
0:02:33]} 8... Bb7 {[%clk 0:03:07.4]} 9. a3 {[%clk 0:02:29.5]} 9... a6 {[%clk
0:03:06.7]} 10. Bg5 {[%clk 0:02:23.1]} 10... b5 {[%clk 0:02:59.9]} 11. Ba2
{[%clk 0:02:20.4]} 11... c6 {[%clk 0:02:59.8]} 12. Qd2 {[%clk 0:02:08]} 12...
Qc7 {[%clk 0:02:57.9]} 13. Rad1 {[%clk 0:02:07.6]} 13... Rad8 {[%clk 0:02:57.5]}
14. Nh4 {[%clk 0:01:56.5]} 14... Rfe8 {[%clk 0:02:53.3]} 15. Nf5 {[%clk
0:01:55.6]} 15... Bf8 {[%clk 0:02:54.3]} 16. f4 {[%clk 0:01:39.9]} 16... exd4
{[%clk 0:02:55.1]} 17. Qxd4 {[%clk 0:01:37.4]} 17... c5 {[%clk 0:02:52.3]} 18.
Qd3 {[%clk 0:01:33.6]} 18... c4 {[%clk 0:02:51.6]} 19. Qg3 {[%clk 0:01:11.2]}
19... Kh8 {[%clk 0:02:37.1]} 20. Qh4 {[%clk 0:00:57.5]} 20... Rc8 {[%clk
0:02:22.8]} 21. Rd4 {[%clk 0:00:25]} 21... Qc5 {[%clk 0:02:17.9]} 22. Kh2 {[%clk
0:00:23.5]} 22... Ng8 {[%clk 0:01:53.6]} 23. Qg3 {[%clk 0:00:18.9]} 23... f6
{[%clk 0:01:47.5]} 24. Bh4 {[%clk 0:00:18.9]} 24... g6 {[%clk 0:01:47]} 25. Nxd6
{[%clk 0:00:11.4]} 25... Bxd6 {[%clk 0:01:44.5]} 26. Red1 {[%clk 0:00:12.4]}
26... Re6 {[%clk 0:01:33.7]} 27. Kh1 {[%clk 0:00:07.7]} 27... Nf8 {[%clk
0:01:31.8]} 28. Nd5 {[%clk 0:00:06.7]} 28... Bxd5 {[%clk 0:01:25.8]} 29. Rxd5
{[%clk 0:00:07.8]} 29... Qc7 {[%clk 0:01:25.6]} 30. Qc3 {[%clk 0:00:07.3]} 30...
Bxf4 {[%clk 0:01:20.4]} 31. Rf1 {[%clk 0:00:06.5]} 31... Be5 {[%clk 0:01:19.4]}
32. Qf3 {[%clk 0:00:07.3]} 32... Rd8 {[%clk 0:01:09.5]} 33. c3 {[%clk
0:00:08.3]} 33... Rxd5 {[%clk 0:01:08.7]} 34. exd5 {[%clk 0:00:09.9]} 34... Rd6
{[%clk 0:01:07.7]} 35. Bb1 {[%clk 0:00:11.5]} 35... Qg7 {[%clk 0:01:06.6]} 36.
g4 {[%clk 0:00:10.2]} 36... Ne7 {[%clk 0:01:05.7]} 37. Be4 {[%clk 0:00:09.4]}
37... Nd7 {[%clk 0:01:06.9]} 38. Bf2 {[%clk 0:00:09.5]} 38... Qh6 {[%clk
0:00:59.3]} 39. Be3 {[%clk 0:00:10.3]} 39... Qh4 {[%clk 0:00:58.1]} 40. Bf2
{[%clk 0:00:10.9]} 40... Qh6 {[%clk 0:00:59]} 41. Be3 {[%clk 0:00:12.1]} 41...
Qg7 {[%clk 0:01:00.4]} 42. h4 {[%clk 0:00:12.2]} 42... f5 {[%clk 0:00:57]} 43.
gxf5 {[%clk 0:00:12.6]} 43... gxf5 {[%clk 0:00:58.9]} 44. Bxf5 {[%clk
0:00:10.9]} 44... Nxf5 {[%clk 0:01:00.2]} 45. Qxf5 {[%clk 0:00:08.2]} 45... Rf6
{[%clk 0:01:01.4]} 46. Qh3 {[%clk 0:00:08.1]} 46... Rxf1+ {[%clk 0:00:46.9]} 47.
Qxf1 {[%clk 0:00:08.7]} 47... Qg3 {[%clk 0:00:47.9]} 48. Qf2 {[%clk 0:00:07.1]}
48... Qxf2 {[%clk 0:00:46.2]} 49. Bxf2 {[%clk 0:00:08]} 49... Nf6 {[%clk
0:00:46]} 50. d6 {[%clk 0:00:08.9]} 50... Bxd6 {[%clk 0:00:46.9]} 51. Bd4 {[%clk
0:00:09.3]} 51... Kg7 {[%clk 0:00:48.1]} 52. Kg2 {[%clk 0:00:10.7]} 52... Kg6
{[%clk 0:00:49.5]} 53. Kf3 {[%clk 0:00:11.5]} 53... Kf5 {[%clk 0:00:50.8]} 54.
Be3 {[%clk 0:00:07.1]} 54... Nd5 {[%clk 0:00:49.8]} 55. Bd4 {[%clk 0:00:06.7]}
55... Bf4 {[%clk 0:00:51]} 56. Bc5 {[%clk 0:00:07.4]} 56... Bc1 {[%clk
0:00:51.6]} 57. Bb4 {[%clk 0:00:08]} 57... Bxb2 {[%clk 0:00:52.2]} 58. Ke2
{[%clk 0:00:08.7]} 58... Nxb4 {[%clk 0:00:52.7]} 59. cxb4 {[%clk 0:00:10.2]}
59... Bxa3 {[%clk 0:00:53.8]} 0-1